bitfinex/quotes_ETHUSD_20220227
["timestamp","ask_amount","ask_price","bid_price","bid_amount"]
[1645966464284,0.00096,2837.7,2837.0,0.00640451]
[1645966464684,0.00096,2837.7,2837.3,1.36684155]
[1645966464887,0.141224,2838.0,2837.3,1.36684155]
[1645966465285,0.00096,2838.2,2837.1,0.1409]
[1645966465286,0.88269,2838.2,2837.1,0.1409]
[1645966465528,0.3,2838.1,2837.1,0.1409]
[1645966465733,0.00096,2838.0,2837.0,0.0128081]
[1645966465931,0.30096,2838.0,2837.0,0.00640414]
[1645966466133,1.49464868,2838.1,2837.0,0.00640414]
[1645966466330,0.00096,2837.9,2837.0,0.00640414]
[1645966466935,0.25,2838.3,2837.0,0.00640414]
[1645966466936,0.00096,2838.1,2837.0,11.12868667]
[1645966467136,0.00096,2838.2,2837.2,0.3526]
[1645966467331,0.00096,2838.2,2837.0,0.00608667]
[1645966467332,0.00096,2838.2,2837.3,3.6409]
[1645966467635,0.25690605,2838.7,2838.0,1.18112773]
[1645966467941,0.00690605,2838.7,2837.3,0.1409]
[1645966468134,0.88853605,2838.7,2837.3,0.1409]
[1645966468335,0.88853605,2838.7,2837.1,0.1409]
[1645966468336,0.88157,2838.6,2837.1,0.1409]
[1645966468537,0.00096,2838.5,2837.1,0.1409]
[1645966468742,1.76346,2838.4,2837.4,1.32128541]
[1645966468937,0.3,2838.3,2837.4,1.32128541]
[1645966469200,0.00096,2838.3,2837.5,3.5]
[1645966469588,0.00096,2838.3,2837.4,1.32128541]
[1645966469795,0.00096,2838.6,2837.4,1.32128541]
[1645966470189,0.3,2838.6,2837.4,1.32128541]
[1645966470396,0.3,2838.6,2836.9,0.1409]
[1645966470397,4.9961679,2838.2,2836.9,0.1409]
[1645966470592,0.8819533,2838.0,2836.9,0.1409]
[1645966470792,3.80096,2837.9,2837.0,0.0062639]
[1645966470991,0.30096,2837.9,2837.0,0.0062639]
[1645966471392,0.30096,2837.9,2837.1,1.38955518]
[1645966471596,0.88193,2837.7,2837.0,0.0062639]
[1645966471789,1.18193,2837.7,2837.0,0.0062639]
[1645966471992,1.18289,2837.7,2837.0,0.0062639]
[1645966472194,0.88193,2837.7,2837.0,0.00626352]
[1645966472397,1.76483,2837.7,2837.0,0.00626352]
[1645966472794,2.64677,2837.7,2837.0,0.00626352]
[1645966473046,1.906089,2837.7,2837.0,0.00626352]
[1645966473246,1.906089,2837.7,2837.0,0.01252697]
[1645966473247,0.8829,2837.7,2837.0,0.01252697]
[1645966473448,0.8829,2837.7,2837.0,0.00626345]
[1645966473449,0.00096,2837.7,2837.0,0.00626345]
[1645966473648,0.30096,2838.0,2837.0,0.00626345]
[1645966473849,0.00096,2837.7,2837.0,0.00626345]
[1645966474149,0.8820251,2837.7,2837.0,0.00626345]
[1645966474350,0.8829851,2837.7,2837.0,0.00626345]
[1645966474649,0.8829851,2837.7,2836.8,0.24239604]
[1645966474650,0.3,2837.6,2836.8,0.24239604]
[1645966474850,5.71973522,2837.6,2836.8,0.24239604]
[1645966475152,3.10164522,2837.6,2836.8,0.24239604]
[1645966475351,7.60164522,2837.6,2836.8,0.24239604]
[1645966475549,6.60164522,2837.6,2836.8,0.24239604]
[1645966475751,7.60164522,2837.6,2836.8,0.24239604]
[1645966475954,8.8772684,2837.6,2836.8,0.24239604]
[1645966476154,7.60164522,2837.6,2836.8,0.24239604]
[1645966476897,11.0090387,2837.5,2836.8,0.24239604]
[1645966477098,0.8821833,2837.3,2836.8,0.24239604]
[1645966477297,4.3822,2837.2,2836.8,0.24239604]
[1645966477703,1.32455887,2837.1,2836.8,0.24239604]
[1645966478100,1.81724735,2837.1,2836.8,0.24239604]
[1645966478700,3.5,2837.0,2836.8,0.24239604]
[1645966478901,4.38226,2837.0,2836.8,0.24239604]
[1645966479104,3.5,2836.9,2836.8,0.24239604]
[1645966479303,7.38228,2836.8,2835.8,2.7204]
[1645966479503,0.88228,2836.8,2835.8,2.7204]
[1645966479703,0.3,2836.7,2836.1,0.02564049]
[1645966479905,1.3544715,2836.7,2836.1,0.02564049]
[1645966480106,1.23455258,2836.7,2836.1,0.02564049]
[1645966480310,1.06243108,2836.7,2836.1,0.02564049]
[1645966480534,4.56243108,2836.7,2836.3,0.00640943]
[1645966480741,1.76483,2836.6,2836.3,0.00640943]
[1645966480939,1.96036772,2836.6,2836.3,0.00640943]
[1645966481139,0.3,2836.5,2836.3,0.00640943]
[1645966481339,0.3,2836.5,2835.8,0.02564155]
[1645966481540,0.88239,2836.4,2835.8,0.02564155]
[1645966481739,0.756629,2836.4,2836.3,0.00640935]
[1645966482541,0.756629,2836.4,2835.4,1.14]
[1645966482741,0.756629,2836.4,2836.2,0.00609839]
[1645966483841,0.756629,2836.4,2835.4,0.00195812]
[1645966484042,0.756629,2836.4,2836.2,0.00609468]
[1645966484287,0.897951,2836.4,2836.2,0.00609468]
[1645966484686,0.756629,2836.4,2836.2,0.00609468]
[1645966484888,0.756629,2836.4,2835.4,3.50195812]
[1645966485088,0.756629,2836.4,2835.4,0.00195812]
[1645966485289,1.26159934,2836.4,2836.2,0.00609468]
[1645966486091,1.409229,2836.4,2834.8,0.04469713]
[1645966486490,1.25455245,2836.4,2836.2,0.00609468]
[1645966487094,1.23921241,2836.4,2836.2,0.00609468]
[1645966487290,1.23921241,2836.4,2834.8,0.04469713]
[1645966487491,1.59181241,2836.4,2834.8,0.04469713]
[1645966487691,1.23921241,2836.4,2836.2,0.00611569]
[1645966488641,1.23921241,2836.4,2835.4,1.44045424]
[1645966488840,1.23921241,2836.4,2836.2,0.00611569]
[1645966489840,1.23921241,2836.4,2835.4,1.44045424]
[1645966490041,1.23921241,2836.4,2836.2,0.00611569]
[1645966490447,0.93921241,2836.4,2836.2,0.00611569]
[1645966490652,0.756629,2836.4,2836.2,0.00611569]
[1645966491043,1.109229,2836.4,2834.8,0.04469713]
[1645966491246,0.88245,2836.1,2835.7,0.02402448]
[1645966491444,0.8825,2836.0,2835.7,0.02402448]
[1645966491717,2.64763,2836.0,2835.7,0.02402448]
[1645966492203,0.88265,2835.6,2834.8,0.00195812]
[1645966492403,0.88265,2835.6,2834.4,0.00195812]
[1645966492604,1.65114714,2835.6,2835.3,0.02402713]
[1645966493104,13.30383714,2835.6,2835.3,0.02402713]
[1645966493311,13.30383714,2835.6,2834.4,0.00195812]
[1645966493312,11.90013401,2835.5,2834.4,0.00195812]
[1645966493508,10.77,2835.3,2834.1,0.00195812]
[1645966493704,0.25511056,2835.2,2834.9,0.02402949]
[1645966493905,0.88299,2835.2,2834.9,0.02402949]
[1645966494105,2.36586,2835.2,2834.9,0.02402949]
[1645966494305,1.48299,2835.2,2834.9,0.02402949]
[1645966494505,0.6,2835.2,2833.8,3.85455812]
[1645966494708,2.0,2835.4,2833.8,3.50195812]
[1645966494709,0.3,2835.3,2833.8,3.50195812]
[1645966494905,0.3,2835.3,2834.9,0.00575889]
[1645966495208,0.3,2835.4,2834.9,0.00575889]
[1645966495836,0.3,2835.4,2833.7,0.01462582]
[1645966495837,0.48648861,2835.4,2834.1,0.00195812]
[1645966496033,0.62783861,2835.4,2835.0,0.00575875]
[1645966496435,0.88269,2835.2,2835.0,0.00575875]
[1645966496835,1.18269,2835.2,2835.0,0.00575875]
[1645966497036,1.18269,2835.2,2833.8,0.00195812]
[1645966497037,0.88287,2834.8,2833.8,0.00195812]
[1645966497338,1.18287,2834.8,2833.8,0.00195812]
[1645966497538,0.8829,2834.6,2833.8,0.00195812]
[1645966497736,0.3,2834.5,2833.6,0.00195812]
[1645966497937,0.3,2834.6,2833.5,0.01735905]
[1645966498144,0.50741915,2834.8,2833.5,0.01735905]
[1645966498145,0.25,2835.3,2833.5,0.01735905]
[1645966498348,2.90859309,2835.3,2833.5,0.01735905]
[1645966498542,2.90859309,2835.3,2833.9,0.00577878]
[1645966498745,4.20859309,2835.3,2833.9,0.00577878]
[1645966498944,3.20859309,2835.3,2833.9,0.00577878]
[1645966499237,4.20859309,2835.3,2834.6,1.23905898]
[1645966499425,0.88269,2835.2,2834.6,1.23905898]
[1645966499623,1.18269,2835.2,2834.6,1.23905898]
[1645966499822,1.18269,2835.2,2834.5,0.00577801]
[1645966500426,3.04995509,2835.3,2834.5,0.00577801]
[1645966500624,3.04995509,2835.3,2834.3,3.85455812]
[1645966500824,3.04995509,2835.3,2834.3,3.8526]
[1645966501030,3.04995509,2835.3,2834.7,0.00577767]
[1645966501226,2.79995509,2835.3,2834.7,0.00577767]
[1645966501427,2.65859309,2835.3,2834.7,0.00577767]
[1645966501929,2.65859309,2835.3,2834.4,0.14305812]
[1645966502125,2.65859309,2835.3,2834.9,0.00582441]
[1645966502525,0.09546096,2835.7,2834.9,0.00582441]
[1645966502727,0.09546096,2835.7,2834.9,0.00778253]
[1645966502951,0.09546096,2835.7,2834.7,0.00195812]
[1645966503354,0.09546096,2835.7,2835.2,0.00582399]
[1645966504154,0.09546096,2835.7,2834.7,0.00195812]
[1645966504554,0.09546096,2835.7,2835.3,0.00582378]
[1645966504959,1.76506,2836.1,2835.3,0.00582378]
[1645966504960,1.073044,2836.3,2835.3,0.00582378]
[1645966505156,1.073044,2836.3,2835.3,0.0043733]
[1645966505358,1.073044,2836.3,2835.2,1.37883205]
[1645966505959,0.88249,2836.0,2835.2,0.00195812]
[1645966506162,5.56505,2836.0,2834.6,0.00195812]
[1645966506360,16.63505,2836.0,2834.6,0.00195812]
[1645966506558,15.75256,2836.0,2834.6,0.00195812]
[1645966506804,6.52103712,2836.0,2834.2,0.00195812]
[1645966507004,1.40462555,2835.7,2834.2,0.35455812]
[1645966507202,0.88261,2835.6,2834.3,0.00195812]
[1645966507803,1.18261,2835.6,2834.3,0.00195812]
[1645966508006,1.37175719,2835.6,2834.3,0.00195812]
[1645966508312,0.88264,2835.3,2834.3,0.00195812]
[1645966508715,2.36535,2835.3,2834.3,0.00195812]
[1645966508914,1.76553,2835.2,2834.3,0.00195812]
[1645966509311,1.76553,2835.2,2834.7,0.00640831]
[1645966509512,3.52361704,2835.3,2834.7,0.00640831]
[1645966509711,2.64090704,2835.3,2834.7,0.00640831]
[1645966510112,1.64090704,2835.3,2834.7,0.00640831]
[1645966510310,2.48264,2835.3,2834.3,0.00195812]
[1645966510558,2.48264,2835.3,2834.9,0.00640801]
[1645966510559,1.48264,2835.3,2834.9,0.00640801]
[1645966511153,0.88271,2835.2,2834.9,0.00640801]
[1645966511364,11.65271,2835.2,2834.3,0.00195812]
[1645966511555,3.5,2835.1,2834.1,0.00195812]
[1645966511753,3.8,2835.1,2835.0,0.00640786]
[1645966511953,1.48412092,2835.1,2835.0,0.00640786]
[1645966512362,0.48412092,2835.1,2835.0,0.00640786]
[1645966512556,0.48412092,2835.1,2834.1,0.00195812]
[1645966512757,0.88284,2834.8,2834.1,0.00195812]
[1645966512958,0.88284,2834.8,2834.5,0.02563559]
[1645966513158,3.5,2834.7,2834.5,0.02563559]
[1645966513360,1.36292108,2834.8,2834.5,0.02563559]
[1645966513557,1.0,2834.7,2834.5,0.02563559]
[1645966513759,1.0,2834.7,2834.1,0.00195812]
[1645966513760,3.5,2834.7,2834.1,0.00195812]
[1645966513962,10.77,2834.6,2834.0,0.1411]
[1645966514217,0.88288,2834.6,2834.5,0.00640854]
[1645966514504,2.0646932,2834.6,2834.5,0.00640854]
[1645966514701,1.6646932,2834.6,2834.5,0.00640854]
[1645966515101,0.3,2834.5,2834.1,0.00195812]
[1645966515302,0.3,2834.5,2834.0,0.02563862]
[1645966515303,2.27261191,2834.4,2834.0,0.02563862]
[1645966515604,0.883,2834.3,2834.0,0.02563862]
[1645966515801,1.183,2834.3,2834.0,0.02563862]
[1645966516000,1.64825178,2834.3,2834.0,0.02563862]
[1645966516201,1.64825178,2834.3,2833.2,0.04469713]
[1645966516504,1.64825178,2834.3,2832.6,0.01238786]
[1645966516700,1.64825178,2834.3,2833.2,0.00195968]
[1645966516701,5.32833286,2834.3,2833.2,0.00195968]
[1645966516901,1.82833286,2834.3,2833.2,0.00195968]
[1645966517103,13.59833286,2834.3,2833.2,0.00195968]
[1645966517403,6.14825178,2834.3,2833.2,0.00195968]
[1645966518153,0.88306,2834.0,2833.2,0.00195968]
[1645966518350,3.97686844,2834.0,2833.2,0.00195968]
[1645966518553,6.62425895,2834.0,2833.2,0.00195968]
[1645966518754,4.12425895,2834.0,2833.2,0.00195968]
[1645966518950,7.62425895,2834.0,2833.2,0.00195968]
[1645966519156,0.18008108,2833.9,2833.2,0.00195968]
[1645966519351,0.88312,2833.8,2832.6,0.00195968]
[1645966519552,1.40199738,2833.8,2832.6,0.00195968]
[1645966519751,1.70199738,2833.8,2833.0,18.8808234]
[1645966520252,0.8832,2833.6,2833.0,18.8808234]
[1645966520457,1.97534468,2834.0,2833.0,18.8808234]
[1645966520656,0.88302,2834.1,2833.1,0.00195968]
[1645966521460,0.88942926,2834.1,2833.5,0.00641081]
[1645966522114,1.18942926,2834.1,2833.5,0.00641081]
[1645966522321,1.48302,2834.1,2833.1,0.00195968]
[1645966522517,1.05024284,2834.1,2833.6,0.00641071]
[1645966522726,1.05024284,2834.1,2833.6,0.00538872]
[1645966522727,0.00640941,2834.1,2833.6,0.00538872]
[1645966523521,1.96435463,2834.4,2833.2,0.00195968]
[1645966523719,1.96435463,2834.4,2833.7,1.09487624]
[1645966523919,1.96435463,2834.4,2833.2,0.00195968]
[1645966524322,2.26435463,2834.4,2833.2,0.00195968]
[1645966524517,2.26750102,2834.4,2833.2,0.00195968]
[1645966524918,2.26750102,2834.4,2833.6,1.22994201]
[1645966525118,1.96750102,2834.4,2833.6,1.22994201]
[1645966525319,0.88292,2834.6,2833.7,3.5]
[1645966525558,2.13283,2834.8,2833.7,3.5]
[1645966525559,1.13283,2834.8,2833.7,3.50195968]
[1645966525758,1.13283,2834.8,2833.6,1.22994201]
[1645966525759,1.13283,2834.8,2833.8,0.00195968]
[1645966526256,0.00640934,2834.3,2834.2,1.02302291]
[1645966527156,0.00640934,2834.3,2833.6,0.00641098]
[1645966527157,3.5,2835.2,2833.3,0.00195968]
[1645966527357,3.5,2835.2,2833.6,0.00641105]
[1645966527358,0.00640919,2834.4,2833.6,0.00641105]
[1645966528160,0.88932919,2834.4,2833.6,0.00641105]
[1645966528361,0.88292,2834.4,2833.8,1.17444715]
[1645966528561,0.00640956,2834.1,2833.8,1.17444715]
[1645966528960,0.00640956,2834.1,2833.6,0.00641087]
[1645966529402,1.36264837,2834.4,2833.3,0.00195968]
[1645966529607,1.0,2834.3,2833.3,0.00195968]
[1645966529806,1.66264837,2834.4,2833.6,0.00641075]
[1645966529807,0.00640979,2834.0,2833.6,0.00641075]
[1645966530208,0.00640979,2834.0,2833.6,1.28375527]
[1645966530606,2.24558837,2834.4,2833.6,1.27734452]
[1645966531008,0.00640748,2834.0,2833.6,1.28375292]
[1645966531809,0.47972837,2834.4,2833.6,1.27734452]
[1645966532214,0.00640748,2834.0,2833.6,1.28375292]
[1645966533056,0.47972837,2834.4,2833.6,1.27734452]
[1645966533256,0.00640748,2834.0,2833.6,1.28375292]
[1645966534257,0.47972837,2834.4,2833.6,1.27734452]
[1645966534458,0.0064098,2834.0,2833.6,1.28375523]
[1645966535560,1.36263837,2834.4,2833.6,1.27734452]
[1645966535762,0.0064098,2834.0,2833.6,1.28375523]
[1645966536809,2.24559837,2834.4,2833.3,0.00195968]
[1645966537010,0.0064098,2834.0,2833.6,0.00641071]
[1645966537208,17.67208925,2834.4,2833.6,0.00641071]
[1645966537608,14.17208925,2834.4,2833.6,0.00641071]
[1645966537809,14.17208925,2834.4,2833.5,1.22287205]
[1645966538014,10.77,2834.2,2833.3,0.00195968]
[1645966538214,10.77,2834.2,2833.0,18.8808234]
[1645966538215,10.77,2833.9,2833.1,0.00195968]
[1645966538415,11.65329,2833.7,2833.0,18.8808234]
[1645966538615,11.65329,2833.7,2833.1,0.00195968]
[1645966538814,12.65329,2833.7,2833.0,18.8808234]
[1645966539015,12.83337108,2833.7,2833.0,18.8808234]
[1645966539214,13.13337108,2833.7,2833.0,18.8808234]
[1645966539413,14.01668108,2833.7,2833.0,18.8808234]
[1645966539613,10.77,2833.5,2833.0,18.8808234]
[1645966539813,12.07,2833.5,2833.0,18.8808234]
[1645966540017,0.88324,2833.4,2833.0,18.8808234]
[1645966540215,1.04118143,2833.7,2833.1,3.5]
[1645966540459,1.07339086,2834.0,2833.1,3.5]
[1645966540653,1.07339086,2834.0,2833.2,0.00195968]
[1645966541754,1.07339086,2834.0,2833.5,0.00641081]
[1645966542354,0.3,2833.9,2833.5,0.00641081]
[1645966542755,0.3,2833.9,2833.6,1.05068244]
[1645966542959,0.3,2833.9,2833.6,1.05709302]
[1645966543159,0.88301,2834.0,2833.6,1.05709302]
[1645966543358,0.88301,2834.0,2833.6,0.00641058]
[1645966543359,1.08225428,2834.0,2833.6,0.00641058]
[1645966543862,1.08225428,2834.0,2833.2,0.00195968]
[1645966543863,0.88306,2833.9,2833.2,0.00195968]
[1645966544058,0.88306,2833.9,2833.7,0.00641051]
[1645966544515,1.39556188,2833.9,2833.7,0.00641051]
[1645966545117,1.39556188,2833.9,2833.2,0.00195968]
[1645966545314,1.39556188,2833.9,2833.7,0.00641051]
[1645966546315,1.39556188,2833.9,2833.3,0.00195968]
[1645966546516,1.39556188,2833.9,2833.7,0.00641051]
[1645966547218,12.16556188,2833.9,2833.7,0.00641051]
[1645966547620,13.16556188,2833.9,2833.7,0.00641051]
[1645966547815,14.04873188,2833.9,2833.3,0.00195968]
[1645966548065,0.36661152,2833.8,2833.7,0.00641051]
[1645966548264,0.38565592,2833.8,2833.7,0.00641051]
[1645966548464,0.18008108,2833.8,2833.7,0.00641051]
[1645966548864,0.18008108,2833.8,2833.2,0.00195968]
[1645966549067,0.18008108,2833.8,2833.6,0.00641058]
[1645966549965,0.18008108,2833.8,2833.2,0.00195968]
[1645966550172,11.09151708,2833.8,2833.6,0.00601778]
[1645966550365,10.95008108,2833.8,2833.6,0.00601778]
[1645966550566,11.95008108,2833.8,2833.6,0.00601778]
[1645966551167,0.18008108,2833.7,2833.1,0.00195968]
[1645966551369,13.41979,2833.6,2833.0,18.8808234]
[1645966551571,13.71979,2833.6,2833.1,0.02407497]
[1645966551807,4.28788613,2833.6,2833.1,0.02407497]
[1645966552003,3.22451505,2833.6,2833.1,0.02407497]
[1645966552201,2.22451505,2833.6,2833.1,0.02407497]
[1645966552402,3.22451505,2833.6,2833.0,20.26601196]
[1645966552604,3.22451505,2833.6,2833.2,0.00388489]
[1645966552814,10.77,2833.2,2833.0,16.24004287]
[1645966553010,12.53685,2833.2,2833.0,16.24004287]
[1645966553207,3.06685,2833.2,2833.0,16.24004287]
[1645966553610,2.23874877,2833.2,2833.0,16.24004287]
[1645966553808,0.88343,2833.1,2833.0,16.24004287]
[1645966555557,1.06351108,2833.1,2833.0,16.24004287]
[1645966556153,0.88343,2833.1,2833.0,16.24004287]
[1645966556357,0.88327,2833.3,2833.0,16.24004287]
[1645966556555,1.04822227,2833.3,2833.0,16.24004287]
[1645966557056,11.81822227,2833.3,2833.0,16.24004287]
[1645966557456,11.81822227,2833.3,2833.0,16.24645621]
[1645966557457,2.6503166,2833.1,2833.0,16.24645621]
[1645966557859,3.85086411,2833.1,2833.0,16.24645621]
[1645966558061,2.85086411,2833.1,2833.0,16.24645621]
[1645966558262,3.85086411,2833.1,2833.0,16.24645621]
[1645966558463,2.85086411,2833.1,2833.0,16.24004287]
[1645966558661,3.85086411,2833.1,2833.0,16.24004287]
[1645966559504,14.62086411,2833.1,2833.0,16.24004287]
[1645966559904,14.86406701,2833.1,2833.0,16.24004287]
[1645966560303,14.62086411,2833.1,2833.0,16.24004287]
[1645966560707,3.85086411,2833.1,2833.0,16.24004287]
[1645966560911,14.62086411,2833.1,2833.0,16.24004287]
[1645966561411,14.87280321,2833.1,2833.0,16.24004287]
[1645966561809,4.10280321,2833.1,2833.0,16.24004287]
[1645966562010,13.53688,2833.1,2833.0,16.24004287]
[1645966562411,3.1793021,2832.9,2832.5,0.02766392]
[1645966562611,3.1793021,2832.9,2832.5,0.02570424]
[1645966562612,10.77,2832.6,2832.5,0.02570424]
[1645966563058,12.07,2832.6,2832.5,0.02570424]
[1645966563258,12.07,2832.6,2832.4,0.2]
[1645966563259,1.51781305,2832.6,2832.4,0.2]
[1645966563656,0.51781305,2832.6,2832.4,0.2]
[1645966563858,0.51781305,2832.6,2832.4,1.21487783]
[1645966564157,0.21781305,2832.6,2832.4,1.21035563]
[1645966564357,0.3,2832.5,2832.4,1.21035563]
[1645966564759,0.20461087,2832.6,2832.4,0.1954778]
[1645966565059,0.3,2832.8,2832.4,0.1954778]
[1645966565060,0.50711418,2832.8,2832.4,0.1954778]
[1645966565864,0.88343,2832.7,2832.5,0.00642577]
[1645966566904,0.88343,2832.7,2832.4,0.1954778]
[1645966567105,0.88343,2832.7,2832.5,0.00642577]
[1645966567505,10.77,2832.6,2832.5,0.00642577]
[1645966567705,1.3,2832.6,2832.5,0.00642577]
[1645966567904,1.50910473,2832.6,2832.5,0.00642577]
[1645966568208,0.20910473,2832.6,2832.4,0.1954778]
[1645966568405,0.3,2832.5,2832.4,0.20190365]
[1645966568604,0.18104999,2832.5,2832.4,0.20190365]
[1645966569005,10.77,2832.6,2832.4,0.20190365]
[1645966569307,10.77,2832.6,2832.4,0.1954778]
[1645966569308,1.0,2832.6,2832.4,0.1954778]
[1645966569507,3.68008108,2832.5,2832.3,0.006426]
[1645966569704,3.24714108,2832.5,2832.3,0.006426]
[1645966569903,3.44483831,2832.5,2832.3,0.006426]
[1645966570108,2.74483831,2832.5,2832.3,0.006426]
[1645966570306,3.74483831,2832.5,2832.3,0.006426]
[1645966570553,2.56475723,2832.5,2832.2,1.06541999]
[1645966570762,2.56475723,2832.5,2832.3,0.00642608]
[1645966570763,1.96475723,2832.5,2832.3,0.00642608]
[1645966570956,1.08121723,2832.5,2832.3,0.00642608]
[1645966571558,3.1793021,2832.9,2832.3,3.5]
[1645966571758,3.1293021,2832.9,2832.3,3.8526]
[1645966571957,0.2296021,2832.9,2832.5,0.01273267]
[1645966572155,0.2296021,2832.9,2832.5,0.36533267]
[1645966572554,0.2296021,2832.9,2832.5,0.3526]
[1645966572756,0.20181617,2832.9,2832.5,0.3526]
[1645966573155,0.20181617,2832.9,2832.6,0.00642562]
[1645966573955,0.20181617,2832.9,2832.7,1.0284601]
[1645966574199,1.08518617,2832.9,2832.7,1.0284601]
[1645966574597,1.55429633,2832.9,2832.7,1.0284601]
[1645966575201,1.38518617,2832.9,2832.7,1.0284601]
[1645966575401,1.38518617,2832.9,2832.7,1.0347651]
[1645966576005,1.60248467,2832.9,2832.7,1.0347651]
[1645966576402,1.60248467,2832.9,2832.7,1.0284601]
[1645966576803,1.60248467,2832.9,2832.7,0.006305]
[1645966577605,1.38518617,2832.9,2832.3,0.00195968]
[1645966577807,1.58860372,2832.9,2832.2,1.08432613]
[1645966578053,1.58860372,2832.9,2832.7,1.06624516]
[1645966578257,1.58860372,2832.9,2832.7,0.0060409]
[1645966578853,1.58860372,2832.9,2832.3,0.00195968]
[1645966579055,0.50181617,2832.9,2832.7,0.0060409]
[1645966580061,0.50181617,2832.9,2832.4,3.85455968]
[1645966580359,0.50181617,2832.9,2832.7,1.10026136]
[1645966580560,0.20181617,2832.9,2832.7,1.10026136]
[1645966580759,0.88327,2833.5,2832.7,1.10026136]
[1645966580760,1.76627,2833.8,2832.9,0.3526]
[1645966580957,3.71744919,2834.0,2833.1,0.3526]
[1645966580958,0.18452919,2834.0,2833.1,0.3526]
[1645966581161,0.00603868,2833.7,2833.1,0.3526]
[1645966581356,0.00603868,2833.7,2833.2,1.45267311]
[1645966581826,0.00605688,2833.7,2833.2,1.45267311]
[1645966582524,1.06751919,2834.0,2833.2,1.45267311]
[1645966582928,0.006057,2833.7,2833.2,1.45267311]
[1645966583733,1.06751919,2834.0,2833.2,1.45267311]
[1645966583931,0.006057,2833.7,2833.2,1.45267311]
[1645966584232,0.006057,2833.7,2833.4,0.3526]
[1645966584429,0.006057,2833.7,2833.5,3.5]
[1645966584631,0.006057,2833.7,2833.6,0.1411]
[1645966584831,0.25,2834.4,2833.4,0.1411]
[1645966585234,0.00608381,2833.7,2833.4,0.1411]
[1645966585665,0.00608381,2833.7,2833.1,0.00195968]
[1645966585864,0.00608381,2833.7,2833.0,2.8249]
[1645966586064,0.47325522,2833.9,2833.0,2.8249]
[1645966586267,0.47325522,2833.9,2833.3,1.38096263]
[1645966586566,0.00608376,2833.7,2833.3,1.38096263]
[1645966587270,1.34885676,2833.8,2833.3,1.38096263]
[1645966587473,0.00608383,2833.7,2833.3,1.38096263]
[1645966587873,0.00608383,2833.7,2833.1,0.00195968]
[1645966588071,0.00608383,2833.7,2833.0,2.8249]
[1645966588471,1.69574969,2833.8,2833.0,2.8249]
[1645966588875,0.00605016,2833.7,2833.0,2.8249]
[1645966589713,1.18316,2833.5,2833.0,2.8249]
[1645966589913,1.18316,2833.5,2832.9,0.00195968]
[1645966590512,0.3,2833.5,2833.2,1.07666312]
[1645966590712,0.3,2833.6,2833.2,1.07666312]
[1645966590913,0.50007822,2833.6,2833.2,1.07666312]
[1645966591115,0.20007822,2833.6,2833.2,1.07666312]
[1645966591313,0.3,2833.5,2833.2,1.07666312]
[1645966591713,0.30605016,2833.7,2833.2,1.07666312]
[1645966591912,0.00605016,2833.7,2833.2,1.05758862]
[1645966592112,3.36614,2833.8,2833.2,1.05758862]
[1645966592313,0.0060525,2833.7,2833.2,1.05758862]
[1645966593361,2.55162018,2833.8,2833.2,1.05758862]
[1645966593362,2.36614,2833.8,2833.2,1.05758862]
[1645966593561,0.0060525,2833.7,2833.2,1.05758862]
[1645966594461,3.57297068,2833.8,2833.2,1.05758862]
[1645966594661,3.57297068,2833.8,2833.2,0.08758862]
[1645966594864,0.0060525,2833.7,2833.2,0.08758862]
[1645966595667,3.57297068,2833.8,2833.2,0.08758862]
[1645966596069,0.00605234,2833.7,2833.2,0.08758862]
[1645966596469,3.57297068,2833.8,2833.2,0.08758862]
[1645966596470,3.54402302,2833.8,2833.2,0.08758862]
[1645966597710,14.31402302,2833.8,2832.9,0.00195968]
[1645966597912,3.5,2833.7,2832.9,0.00195968]
[1645966598111,0.88336,2833.4,2832.9,0.00195968]
[1645966598312,0.8833,2833.3,2832.8,1.2431]
[1645966598513,0.3,2833.2,2832.6,0.00195968]
[1645966598711,0.48220602,2833.2,2832.5,3.3146]
[1645966599319,0.48220602,2833.2,2832.4,6.01505968]
[1645966599512,0.48220602,2833.2,2832.7,0.00642178]
[1645966599712,0.88332,2833.0,2832.7,0.00642178]
[1645966600113,1.18332,2833.0,2832.7,0.00642178]
[1645966600313,1.37920004,2833.0,2832.7,0.00642178]
[1645966600554,1.37920004,2833.0,2832.4,0.00195968]
[1645966600753,1.37920004,2833.0,2832.2,1.2481]
[1645966600754,1.37920004,2833.0,2832.5,1.02645492]
[1645966600959,1.37920004,2833.0,2832.7,0.00642178]
[1645966601158,2.26250004,2833.0,2832.7,0.00642178]
[1645966601358,0.141456,2833.3,2832.8,7.8526]
[1645966601563,0.00641921,2833.8,2833.0,0.3526]
[1645966601761,2.64937,2834.4,2833.7,1.33711626]
[1645966602161,0.00641921,2833.8,2833.7,1.33711626]
[1645966602963,0.88292,2834.3,2833.7,1.33711626]
[1645966603163,0.00641978,2833.9,2833.7,1.68971626]
[1645966604062,1.13284,2834.6,2833.7,1.68971626]
[1645966604307,2.06568,2834.6,2833.5,0.1411]
[1645966604513,0.88295,2834.3,2833.4,5.2662]
[1645966604708,1.18295,2834.3,2833.4,5.2662]
[1645966604910,1.39290944,2834.3,2833.4,5.2662]
[1645966605313,0.88297,2834.1,2833.9,1.44302181]
[1645966605513,0.88297,2834.1,2833.4,5.2662]
[1645966605713,1.48297,2834.1,2833.3,3.0632]
[1645966606113,1.66266684,2834.1,2833.3,3.0632]
[1645966606914,1.66266684,2834.1,2833.8,1.05901248]
[1645966607119,1.66266684,2834.1,2833.3,3.0632]
[1645966607967,0.00641753,2833.8,2833.3,3.0632]
[1645966608161,0.00641753,2833.8,2833.4,1.06478777]
[1645966608862,1.66266684,2834.1,2833.4,1.06478777]
[1645966609064,1.66266684,2834.1,2833.9,1.02543352]
[1645966609667,1.66266684,2834.1,2833.3,3.0632]
[1645966610469,0.00214934,2833.8,2833.3,3.0632]
[1645966610667,0.00214934,2833.8,2833.4,1.33201491]
[1645966611368,1.66266684,2834.1,2833.4,1.33201491]
[1645966611568,0.00641355,2833.8,2833.4,1.33201491]
[1645966612010,0.00641355,2833.8,2833.3,3.0632]
[1645966612415,0.88949355,2833.8,2833.3,3.0632]
[1645966612615,1.06644228,2833.8,2833.2,0.1411]
[1645966612816,1.67285579,2833.8,2833.2,0.14751504]
[1645966613019,1.48949351,2833.8,2833.2,1.18801299]
[1645966613218,1.7848313,2833.8,2833.2,1.18801299]
[1645966613420,1.6434003,2833.8,2833.2,1.18801299]
[1645966613719,1.63698679,2833.8,2833.2,1.18159795]
[1645966614118,1.63698679,2833.8,2833.2,1.18801296]
[1645966614119,1.64340026,2833.8,2833.2,1.18801296]